Workbook

Sheet SUMMARY
A2: ='CONSEVANCY TANK'!A56 -> OKHAHLAMBA LOCAL MUNICIPALITY
A4: ='CONSEVANCY TANK'!A57 -> CONSTRUCTION OF NKWAZINI CRECHE IN WARD 3
A6: ='CONSEVANCY TANK'!A58 -> CONTRACT NUMBER: 8/1/1/4/3 TEC 02/2026
A8: SUMMARY PAGE
B12: SECTION | D12: DESCRIPTION | H12: AMOUNT
B14: 1 | C14: PRELIMINARY & GENERAL
B16: 2 | C16: CIVIL WORKS
B18: 3 | C18: CRECHE
B20: 4 | C20: CONSERVANCY TANK
B22: 5 | C22: PROVISIONAL SUMS
E24: SUB -TOTAL 1
E26: CONTINGENCY SUM 8%
E28: SUB -TOTAL 2
F30: VAT 15%
B32: TOTAL TO FORM OF OFFER

Sheet P&G
A1: OKHAHLAMBA LOCAL MUNICIPALITY
A2: CONSTRUCTION OF NKWAZINI CRECHE IN WARD 3
A3: CONTRACT NUMBER: 8/1/1/4/3 TEC 02/2026 | D3: CONTRACT
A4: Item | B4: Pay Ref | C4: Description | D4: Unit | E4: Qty | F4: Rate | G4: Amount
B5: SABS | C5: SECTION 1:
A6: 1.0 | B6: 1200 A | C6: PRELIMINARY & GENERAL
A7: 1.1 | B7: 8.3 | C7: Fixed Charge Items
C8: Contractual Requirements | D8: Sum | E8: 1
A9: 1.2 | B9: 8.3.1 | C9: Establish Facilities on Site:
C10: Facilities for Engineer
C11: i) Supply and erect name board on site | D11: Sum | E11: 1
C12: ii) Supply and furnish office on site and providing a Desk and chairs to accommodate 10 people | D12: Sum | E12: 1
A14: 1.3 | B14: 8.3.2 | C14: Facilities for Contractor
C15: (a) Office and Storage Sheds | D15: Sum | E15: 1
C16: (b) Workshops | D16: Sum | E16: 1
C17: (c) Ablution & Latrine Facilities | D17: Sum | E17: 1
C18: (d) Tools & Equipment | D18: Sum | E18: 1
C19: (e) Water supply, electricity and communication | D19: Sum | E19: 1
C20: (f) Dealing with Water on Site | D20: Sum | E20: 1
C21: (g) Access to Site | D21: Sum | E21: 1
C22: (h) Plant | D22: Sum | E22: 1
C23: (i) Setting out of works | D23: Sum | E23: 1
A25: 1.4 | B25: 8.3.3 | C25: Other Fixed Charge Obligations
B26: 8.3.4 | C26: Remove Contractors Site - Establishment
C27: on completion | D27: Sum | E27: 1
A29: 1.5 | B29: 8.4 | C29: Time Related Items
B30: 8.4.1 | C30: a) Contractual Requirements | D30: Month | E30: 5
C31: b) Community Liason Officer | D31: Month | E31: 5
A33: 1.6 | B33: 8.4.2.1 | C33: Facilities for ENGINEER
C34: i) Maintain notice board | D34: Month | E34: 5
C35: ii) Provision of a rain gaurge | D35: Month | E35: 5
C36: iii) Provision for a cellphone and call charges for the Engineer's represantative | D36: sum | E36: 1 | F36: R15,000.00 | G36: =E36*F36 -> R15,000.00
C37: iv) Provision for accomodation and transport for the Engineer's represantative | D37: sum | E37: 1 | F37: R80,000.00 | G37: =E37*F37 -> R80,000.00
C38: v) Allow for percentage for handling and Mark up on iii and iv above | D38: % | E38: =G37+G36 -> R95,000
A40: 1.7 | B40: 8.4.2.2 | C40: Facilities for CONTRACTOR
C41: Operate and maintain facilities on site for the
C42: duration of the construction period | D42: Month | E42: 5
A43: 1.8 | B43: 8.4.3 | C43: Supervision for duration of Construction | D43: Month | E43: 5
A44: 1.9 | B44: 8.4.4 | C44: Company & Head Office Overhead Costs | D44: Month | E44: 5
A45: 1.10 | B45: 8.4.5 | C45: Other Time Related Obligations | D45: Month | E45: 5
A47: 1.11 | B47: 8.5 | C47: Provisional Sums
C48: Note: All provisional sums to be used at the
C49: discretion of the Project Enginner
A50: 1.11.1 | C50: Allowance for PSC Allowances, a five member PSC at R200 per person per month. | D50: Sum | E50: 1 | F50: R10,000.00 | G50: =E50*F50 -> R10,000.00
A51: 1.11.2 | C51: Contractor's attendance, handling costs
C52: and charges on item 1.11.1 | D52: % | E52: =G50 -> R10,000.00 | F52: %
C54: Section 1: P & G Carried Forward to Summary
A56: PD 1

Sheet CIVIL WORKS
A1: ='P&G '!A1 -> OKHAHLAMBA LOCAL MUNICIPALITY
A2: ='P&G '!A2 -> CONSTRUCTION OF NKWAZINI CRECHE IN WARD 3
A3: ='P&G '!A3 -> CONTRACT NUMBER: 8/1/1/4/3 TEC 02/2026
A4: Item | B4: Pay Ref | C4: Description | D4: Unit | E4: Qty | F4: Rate | G4: Amount
B6: SABS | C6: SECTION 2: CIVIL WORKS
A7: 2.1 | B7: 1200C | C7: SITE CLEARANCE
A9: 2.1.1 | C9: Clear site for hall, Road and parking area. | D9: m² | E9: 2500
B10: SABS
A11: 2.2 | B11: 1200D | C11: EARTHWORKS
A13: 2.2.1 | C13: Strip topsoil to nominal depth of 150mm on
C14: building- and parking areas. | D14: m² | E14: 750
A16: 2.2.2 (a) | C16: Cut to fill in all classes of materials for a platform for building, access road and parking. Rate to include for benching, trimming, transporting to fill around site or embankments to levels, slope and compaction to 93% of mod AASHTO density. | D16: m³ | E16: 1200
A18: (b) | C18: Cut to spoil or stockpile where ordered
C19: by the Engineer. (Provisional) | D19: m³ | E19: 500
A21: (c) | C21: Import G5 material from commecial source and fill to platform for building, access road and parking . | D21: m³ | E21: 500
A23: (d) | C23: Extra over item 2.2.2 (a) & (b) for
C24: i) Excavation in hard rock (Provisional) | D24: m³ | E24: 100
A26: 2.4 | B26: SABS | C26: ROAD & PARKING
A27: 2.4.1 | B27: 1200 C | C27: Clear 5.0m wide strip for acces road, parking area and around | D27: m² | E27: 300
B29: SABS
A30: 2.5 | B30: 1200D | C30: Rip instu material to depth of 150mm, scarify,
C31: shape and re-compact to 93% of mod AASHTO
C32: density. | D32: m³ | E32: 100
A34: (c) | B34: 8.2.1a | C34: Supply and lay precast concrete kerbing fig. 12 complete | D34: m | E34: 150
A36: (a) | B36: SABS | C36: Base Course layer
B37: 1200MF
B38: 8.3.1 | C38: Construct 100mm layer with G2 quality
C39: material compacted to 98% Mod Aashto to
C40: combo court. | D40: m³ | E40: 50
C44: Section 2: Civil Works Carried Forward | H44: =SUM(H9:H42) -> 0.00
A46: PD 2
A47: =A1 -> OKHAHLAMBA LOCAL MUNICIPALITY
A48: =A2 -> CONSTRUCTION OF NKWAZINI CRECHE IN WARD 3
A49: =A3 -> CONTRACT NUMBER: 8/1/1/4/3 TEC 02/2026
A50: Item | B50: Pay Ref | C50: Description | D50: Unit | E50: Qty
C51: Brought Forward | H51: =H44 -> 0.00
A52: 2.6 | B52: SABS | C52: STORM WATER DRAINAGE
A53: 2.2.3 | B53: 1200 DM | C53: DRAINAGE
A54: (a) | B54: 8.3.15 | C54: Construct a Cut off drain around banks | D54: m³ | E54: 205
A55: (b) | C55: Construct sub-soil drain to RNM17/01/2.3 | D55: m | E55: 108
A56: (c) | C56: Construct catchpit for 450mm Stormwater pipe
C57: i) 1m deep | D57: No. | E57: 1
C58: ii) 1.5m deep | D58: No. | E58: 1
A59: (d) | C59: Supply, lay, joint, backfill, dispose of
C60: surplus materials of stormwater pipes
C61: i) 450mm 50D concrete pipe | D61: m | E61: 7.5
B62: SABS
A63: 2.2.4 | B63: 1200DB | C63: PIPE TRENCHES
A64: (a) | B64: 3.2.1 | C64: Excavate in all materials for sewer and
C65: water mains maximum 150mm dia.
C66: i) 0m to 1,0m deep | D66: m³ | E66: 16
C67: ii) 1,0m to 2,0m deep | D67: m³ | E67: 12
A68: (b) | C68: for stormwater pipes of max. 450mm dia
C69: i) 0 m to 1,0m deep | D69: m³ | E69: 30
C70: ii) 1,0m to 1,5m deep | D70: m³ | E70: 15
C71: ii) 1,5m to 2,0m deep | D71: m³ | E71: 39
C72: ii) 2,0m to 2,5m deep | D72: m³ | E72: 50
C73: ii) 2,5m to 3,0m deep | D73: m³ | E73: 117
A75: (c) | C75: Extra over item 2.2(e) for (Provisional)
C76: i) Excavation in hard rock | D76: m³ | E76: 25
A78: 2.4 | B78: SABS | C78: MISCELLANEOUS
B79: 1200D
A80: (a) | C80: Supply and eret 5000L polyethylene or similar
C81: approved water storage tank with 15mm tap
C82: Rate to include for tank foundation , labour and
C83: materials and to install down pipe into tank inlet.
C84: Rate to include for supy and instalation of a 6m tank stand | D84: No | E84: 2
A86: (b) i | C86: Allow a provisional sum for the citing, drilling and equiping of a Borehole | D86: sum | E86: 1 | F86: 250000.00 | G86: =E86*F86 -> 250,000.00
A87: ii | C87: Allow for percentage handling and mark-up for (i) above | D87: %
A89: (c ) | C89: DAYWORKS
C90: Labour
C91: (01) Unskilled Labour | D91: hr | E91: 8 | G91: Rate Only
C92: (02) Skilled Labour (artisans) | D92: hr | E92: 8 | G92: Rate Only
C93: (03) Foreman | D93: hr | E93: 8 | G93: Rate Only
C95: Construction Plant
C96: (i) Grader | D96: hr | E96: 8 | G96: Rate Only
C97: (ii) TLB | D97: hr | E97: 8 | G97: Rate Only
C98: (iii) Compactor (10 TON roller) | D98: hr | E98: 8 | G98: Rate Only
C99: (iv) Tipper Truck (10m3) | D99: hr | E99: 8 | G99: Rate Only
C101: Section 2: Civil Works Carried To | H101: =SUM(H51:H99) -> 0.00
C102: Summary
A103: PD 3

Sheet CRECHE
A1: ='CIVIL WORKS'!A1 -> OKHAHLAMBA LOCAL MUNICIPALITY
A2: ='CIVIL WORKS'!A2 -> CONSTRUCTION OF NKWAZINI CRECHE IN WARD 3
A3: ='CIVIL WORKS'!A3 -> CONTRACT NUMBER: 8/1/1/4/3 TEC 02/2026
A4: Item | B4: Pay Ref | C4: Description | D4: Unit | E4: Qty | F4: Rate | G4: Amount
B6: SABS | C6: SECTION 3: COMMUNITY HALL
B7: 1200 DA | C7: EARTHWORKS
A8: 3.1 | B8: 8.3.2 | C8: (a) Excavate for surface trenches not exc.
C9: 1m deep for wall foundations. | D9: m³ | E9: 95
A10: 3.1..2 | C10: Rip, scarify & recompact insitu layer under | D10: m³ | E10: 85
C11: floors
A12: 3.1.3 | C12: Ditto including shaping to falls 1m width around | D12: m² | E12: 85
A13: 3.1.4 | C13: Filling to underside of slabs with material
C14: from the excavations in layers N/E 150mm
C15: including compacting to 93% Mod Aashto | D15: m² | E15: 90
A17: 3.1.5 | C17: Return fill and ram foundations | D17: m³ | E17: 300
A18: 3.1.6 | C18: Spread and level surplus excavated material
C19: as directed on site(Prvisional) | D19: m³ | E19: 195
A20: 3.1.7 | C20: EO for hard rock (Provisional) | D20: m³ | E20: 7
A21: 3.1.8 | C21: EO for boulders (Provisional) | D21: m³ | E21: 7
A22: 3.1.9 | C22: Keep excavations free from water | D22: Item | E22: 7
A23: 3.1.10 | C23: Import G7 quality gravel materail for foundation infill to be compacted at 150mm thick using from a commecial source, compacted to 98% Mod Aashto . | D23: m³ | E23: 300
A24: 3.1.10 | C24: Soil Poisoning in accordance with SANS 0124. Rate shall include cost of certification from the qualified pest control professional | D24: m² | E24: 400
A25: 3.2 | B25: SABS
B26: 1200GA | C26: Concrete
A27: 3.1.2 | B27: 8.4.2 | C27: 10 Mpa blinding layer (provisional) | D27: m³ | E27: 15
A28: 3.1.3 | B28: 8.4.3 | C28: 25Mpa mass concrete in footings | D28: m³ | E28: 15
A29: 3.1.4 | B29: 8.4.3 | C29: 25 Mpa mass concrete in surface bed | D29: m³ | E29: 40
A30: 3.1.5 | B30: 8.4.3 | C30: 25 Mpa mass concrete in external apron slab | D30: m³ | E30: 10
A32: 3.3 | C32: Formwork
A33: 3.1.1 | B33: 8.2.2 | C33: (a) Smooth formwork to edge of concrete
C34: N/E 300mm high | D34: m | E34: 100
A35: 3.1.2 | B35: 8.4.4 (a) | C35: Steel float finish to falls to step | D35: m² | E35: 250
A36: 3.1.3 | C36: Woodfloat finish to apron slab | D36: m² | E36: 85
A38: 3.4 | C38: Reinforcement
A39: 3.4.1 | B39: 8.3.2 | C39: (a) Mesh reinforcement ref: 193 in surface bed | D39: m² | E39: 300
B40: 8.3.1 | C40: (b) HT reinforcing steel (provisional) | D40: ton | E40: 3
A42: 3.5 | C42: Brickwork
C43: Suppy and construct
A44: 3.5.1 | C44: 230mm brickwork in foundations in 'NFX'
C45: clay commons in class 1 mortar | D45: m² | E45: 195
A46: 3.5.2 | C46: 115mm wall in 'NFP' clay commons in class mortar. | D46: m² | E46: 400
C48: Section 4: Community Hall Carried Forward
A50: PD 4
A51: =A1 -> OKHAHLAMBA LOCAL MUNICIPALITY
A52: =A2 -> CONSTRUCTION OF NKWAZINI CRECHE IN WARD 3
A53: =A3 -> CONTRACT NUMBER: 8/1/1/4/3 TEC 02/2026
A54: Item | B54: Pay Ref | C54: Description | D54: Unit | E54: Qty | F54: Rate | G54: Amount
C55: brought forward
A56: 3.5.3 | C56: 230mm wall ditto | D56: m² | E56: 60
A57: 3.5.4 | C57: 115mm wall in beam filling | D57: m² | E57: 60
A58: 3.5.6 | C58: Rough raking and cutting | D58: m | E58: 13
A59: 3.5.7 | C59: 75mm brickforce | D59: m | E59: 195
A60: 3.5.8 | C60: 150mm brickforce | D60: m | E60: 845
A61: 3.5.9 | C61: Precast lintols 1050mm long | D61: No | E61: 11
A62: 3.5.10 | C62: Precast lintols 1350mm long | D62: No | E62: 13
A63: 3.5.11 | C63: Precast lintols 1850mm long | D63: No | E63: 13
A65: 3.6 | C65: Facings
A66: 3.6.1 | C66: "Corobrik" spanish terracotta travertine"
C67: FBS facebrick pointed with square recessed
C68: horizontal & vertical joints or similar approved
C69: i) Supply and delivery to site | D69: m² | E69: 16
C70: ii) Alternative: Supply and deliver to site
C71: .............................................................(specify) | D71: m² | E71: 15
A73: 3.6.2 | C73: EO for facings in foundations | D73: m² | E73: 65
A75: 3.6.3 | C75: EO for faced brickwork in stretcher bond | D75: m² | E75: 65
A76: 3.6.4 | C76: 230 brick wall pointed on both sides | D76: m² | E76: 240
A77: 3.6.5 | C77: Fair, raking, cutting to walls | D77: m | E77: 10
A78: 3.6.6 | C78: Faced brick on edge lintol pointed on soffit
C79: and end including window cills | D79: m | E79: 60 | I79: =0.15*#REF! -> 
A81: 3.6.7 | C81: Two coats bag and brixeal to outer face of
C82: inner skin of brick wall | D82: m² | E82: 310
A83: 3.6.8 | C83: Form set of two openings in 220 mm wall for
C84: airbricks including external & internal air bricks | D84: no | E84: 6
A86: 3.7 | C86: Waterproofing
A87: 3.7.1 | C87: 375 micron brickgrip DPC under walls and
C88: cills | D88: m² | E88: 65
A89: 3.7.2 | C89: 250 micron gunplas USB green damp-proof
C90: membrane to floors | D90: m² | E90: 410
A91: 3.7.3 | C91: Silicone sealant around frames externally | D91: m | E91: 185
C94: Section 3: Community Hall Carried Forward
A96: PD 5
A97: =A51 -> OKHAHLAMBA LOCAL MUNICIPALITY
A98: =A52 -> CONSTRUCTION OF NKWAZINI CRECHE IN WARD 3
A99: =A53 -> CONTRACT NUMBER: 8/1/1/4/3 TEC 02/2026
A100: Item | B100: Pay Ref | C100: Description | D100: Unit | E100: Qty | F100: Rate | G100: Amount
C101: brought forward
A102: 3.8 | C102: Roof Trusses
A104: 3.8.1 (a) | C104: Pre-fabricated roof trusses supplied by approved (Creche) | D104: Sum | E104: 1
A105: 3.8.1 (b) | C105: Pre-fabricated roof trusses supplied by approved (Ablution) | D105: Sum | E105: 1
C106: manufacturer at 1,2m spacing for the whole buiding as shown on the drawings
A107: 3.8.2 | C107: Bracing
C108: Roof Timbers-(Grade S5) | D108: Sum | E108: 1
A109: 3.8.3 | C109: 38mm x 114mm SA pine wall plates | D109: m | E109: 46
A110: 3.8.4 | C110: 50mm x 76mm SA pine purlins fixed to
C111: trusses at maximum 1140mm centres | D111: m | E111: 585
A112: 3.8.5 | C112: CROMADEK undertile flashing with kick back
C113: and covertype flashing with kick back at gable
C114: to match color of roof sheeting ( Aloe Green Colour). | D114: m | E114: 16
A116: 3.8.6 | C116: 30mm x 1,2mm GHI roof tie 1,500mm girth | D116: No | E116: 60
A118: 3.9 | C118: Roof Coverings
A119: 3.9.1 | C119: CHROMADEK' roof sheeting including fixings,
C120: etc., IBR profile.
A121: 3.9.2 | C121: Single continuous roof sheeting 0,6mm thick
C122: including capping | D122: m² | E122: 500
C124: Supply & fix ancilleries to roof sheeting
A125: 3.9.4 | C125: 9mm x 225mm FC facia board incl jointing strips | D125: m | E125: 200
A126: 3.9.5 | C126: 9mm x 225mm FC barge board incl jointing strips | D126: m | E126: 55
C128: CEILINGS: Gypsum
A129: 3.9.6 | C129: 6,4mm Rhinoboard ceilings on and including
C130: 38mm x 50mm brandering at 400mm centres
C131: incl. 10mm x 40mm hardwood coverstrips | D131: m² | E131: 200
A133: 3.9.7 | C133: 75mm Rhino cornice | D133: m | E133: 600
A134: 3.9.8 | C134: From trapdoor size 600mm x 600mm | D134: No | E134: 5
A136: 3.10 | C136: Doors
A137: 3.10.1 | C137: 44mm Wrot meranti framed ledged, braced
C138: and battened doors
C139: i) Supply and install 763 x 1982 type BB18 galvinised
C140: buglar guard. | D140: No | E140: 2
A141: 3.10.2 | C141: Door size 813 x 2032mm | D141: No | E141: 15
A142: 3.10.3 | C142: Door size 1640 x 2032mm stable door | D142: No | E142: 3
A143: 3.10.4 | C143: Purpose made serving hatch doors 750 x 750 mm complete
C144: with brass hinges and two brass barrel bolts | D144: No | E144: 1
A145: 3.10.5 | C145: Purpose made tickect sales door with brass hinges and two
C146: brass bolts. | D146: No | E146: 1
C147: Section3 : Community Hall Carried Forward
A149: PD 6
A150: =A97 -> OKHAHLAMBA LOCAL MUNICIPALITY
A151: =A98 -> CONSTRUCTION OF NKWAZINI CRECHE IN WARD 3
A152: =A99 -> CONTRACT NUMBER: 8/1/1/4/3 TEC 02/2026
A153: Item | B153: Pay Ref | C153: Description | D153: Unit | E153: Qty | F153: Rate | G153: Amount
C154: brought forward
C155: 44mm hollow core doors
A156: 3.10.6 | C156: Door size 813 x 2032mm hollow core | D156: No | E156: 15
C158: Door Frames
A159: 3.10.7 | C159: Galvanised steel frame for internal doors | D159: No | E159: 3
A160: 3.10.8 | C160: Galvanised steel frame for double dorrs doors | D160: No | E160: 3
C162: IRONMONGERY
A163: 3.10.9 | C163: Union 4 lever mortice lock set including
C164: furniture or similar approved | D164: No | E164: 18
A165: 3.10.10 | C165: 150mm brass barrel bolt | D165: No | E165: 4
A166: 3.10.11 | C166: "Union" wall mounted rubber door stop | D166: No | E166: 18
A167: 3.10.12 | C167: Plastic Indicator plate size 150 x 150 mm or similar approved | D167: No | E167: 4
A168: 3.10.13 | C168: Galvanized steel window frames including
C169: burglar proofing, latches, complete
C170: i) NE 4 | D170: No | E170: 4
C171: ii) ND 7 | D171: No | E171: 12
A173: 3.11 | C173: PLASTERING
C174: SCREEDS
A175: 3.11.1 | C175: Average 25mm 1:3 cement and sand screeds
C176: laid to falls and straight edge finished. Shall be include 600x600mm non slip floor tiles Porcelain non slip floor Tiles to be installed across the hall surface. | D176: m² | E176: 200
C177: Plaster
A178: 3.11.2 | C178: 1:4 cement internal plaster to walls | D178: m² | E178: 550
A179: 3.11.3 | C179: Ditto in narrow widths | D179: m² | E179: 8
A180: 3.11.4 | C180: 1:4 cement external plaster to walls | D180: m² | E180: 80
C181: Dividing Strips, etc
A182: 3.11.5 | C182: 3 x 30mm brass strip | D182: m | E182: 6
A183: 3.12 | C183: PLUMBING & DRAINAGE
C184: Vaal "Flamingo"or similar approved white vitreous china wash hand basin (Ref 7007) size 560 x 405mm complete with two Cobra 111-15 Star chromium plated pillar taps and bolted to wall | D184: No | E184: 7
C185: Vaal "Lavatera"or similar approved (Ref 705426) white vitreous china wall hung urinal size 385 x 600mm high with top inlet and bolted to wall with flush mechanism | D185: No | E185: 3
C186: Vaal "Aquasave"or similar approved white vitreous china low volume wash down WC (Ref 750151) with P or S trap, 6 litre SISO polypropylene cistern and double flap white plastic seat | D186: No | E186: 8
C187: Vaal "Protea" (Ref 750246) white vitreous china paraplegic low level wash down WC with P or S trap and matching 9 litre cistern complete with purpose-made chromium plated side flush lever mounted to wall and double flap white plastic seat or similar approved. | D187: No | E187: 2
C188: Satin polished Grade 304 stainless steel grab rails fixed to wall as per the manufacturer's recommendations. | D188: No | E188: 3
C190: 32mm Diameter stainless steel grab rails 600mm long fixed at 45 degrees. | D190: No | E190: 3
C191: 1200mm long 19mm diameter Towel rail with brackets | D191: No | E191: 5
C192: Lockable toilet roll holder | D192: No | E192: 12
C193: Section 3: Community Hall Carried Forward
A195: PD 7
A196: =A150 -> OKHAHLAMBA LOCAL MUNICIPALITY
A197: =A151 -> CONSTRUCTION OF NKWAZINI CRECHE IN WARD 3
A198: =A152 -> CONTRACT NUMBER: 8/1/1/4/3 TEC 02/2026
A199: Item | B199: Pay Ref | C199: Description | D199: Unit | E199: Qty | F199: Rate | G199: Amount
C200: brought forward
C201: Sanitary Fittings
C202: Kitchen
C203: Sink
A204: 3.12.1 | C204: Stainless steel double sink unit, complete with
C205: brackets and kitchen cabinets. | D205: No | E205: 1
A207: 3.12.2 | C207: 15mm Class 1 copper piping for sink including all fittings | D207: Sum | E207: 1
C208: Water Supply
A209: 3.12.3 | C209: 25mm class 16 HDPE pipe | D209: m | E209: 30
A210: 3.12.3 | C210: 15mm rough brass stopcock | D210: Sum | E210: 1
A211: 3.12.4 | C211: 15mm Cobra pillar tap for sink | D211: No | E211: 1
C213: Sanitary Plumbing
C214: HDPE Pipes including fittings
A215: 3.12.5 | C215: 50mm pipes | D215: m | E215: 100
A216: 3.12.6 | C216: 25mm pipes | D216: m | E216: 100
C218: Extra over HDPE pipes for fittings
A219: 3.12.7 | C219: 25mm ABC cleaning eye in end of pipe | D219: No | E219: 1
A220: 3.12.8 | C220: 50mm access junction | D220: No | E220: 2
A221: 3.12.9 | C221: 50mm access bend | D221: No | E221: 1
A222: 3.12.10 | C222: 25mm bend | D222: No | E222: 1
C223: Traps
A224: 3.12.11 | C224: Sink trap with plain grating and plug and chain | D224: No | E224: 4
C225: uPVC Gulleys
A226: 3.12.12 | C226: Dished gulley not exceeding 750mm deep | D226: No | E226: 1
C227: Valve box
A228: 3.12.13 | C228: 200 x 450mm cast iron stopcock box
C229: including brick chamber below not
C230: exceeding 750mm deep internally | D230: No | E230: 1
C231: Testing
... 69 more rows

Sheet CONSEVANCY TANK
A1: =CRECHE!A257 -> OKHAHLAMBA LOCAL MUNICIPALITY
A2: =CRECHE!A258 -> CONSTRUCTION OF NKWAZINI CRECHE IN WARD 3
A3: =CRECHE!A259 -> CONTRACT NUMBER: 8/1/1/4/3 TEC 02/2026
A4: Item | B4: Pay Ref | C4: Description | D4: Unit | E4: Qty | F4: Rate | G4: Amount
A6: 3.1 | B6: SABS | C6: SECTION 3.1: CONSERVANCY TANK
B8: 1200 DA | C8: EARTHWORKS
A10: 3.1.1 | B10: 8.3.2 | C10: (a) Excavate for conservancy tank not
C11: exc. 3m deep in all materials | D11: m³ | E11: 250
A13: 3.1.2 | C13: Return fill against sum sides. | D13: m³ | E13: 48
A15: 3.1.3 | C15: Spread and level surplus excavated
C16: material as directed on site. | D16: m³ | E16: 74
A18: 3.1.4 | C18: Keep excavations free from water (prov.). | D18: Sum | E18: 1
A20: 3.1.5 | C20: Risk of collapse to sides of excavation not
C21: exc. 2m deep. | D21: m² | E21: 54
A23: 3.1.6 | C23: Ditto including shaping 1m width around. | D23: m² | E23: 90
A24: 3.1.7 | C24: Backfill and Compact excavation | D24: m³ | E24: 14
A25: 3.1.8 | C25: Spread and level surplus excavated material
C26: as directed on site. | D26: m³ | E26: 8
A27: 3.1.9 | C27: EO for hard rock (Provisional). | D27: m³ | E27: 2
A28: 3.1.10 | C28: EO for boulders (Provisional). | D28: m³ | E28: 2
A29: 3.1.11 | C29: Blasting | D29: m³ | E29: 5
B31: SABS
B32: 1200GA | C32: Concrete
A33: 3.1.11 | B33: 8.4.2 | C33: 15 Mpa blinding layer (provisional). | D33: m³ | E33: 2
A34: 3.1.12 | B34: 8.4.3 | C34: 25 Mpa mass concrete for foundation Slab. | D34: m³ | E34: 6
A35: 3.1.13 | B35: 8.4.3 | C35: 25 Mpa mass concrete for soffit Slab. . | D35: m³ | E35: 3
C37: Reinforcement
A38: 3.1.14 | B38: 8.3.2 | C38: (a) Mesh reinforcement ref: 193 in surface bed/apron | D38: m² | E38: 64
C40: Brickwork
A41: 3.1.15 | C41: 230mm brickwork in foundations and pit in
C42: 'NFX' clay commons in class 1 mortar. | D42: m² | E42: 110
A43: 3.1.16 | C43: 110mm wall in 'NFP' clay commons in class 1 mortar. | D43: m² | E43: 120
A44: 3.1.17 | C44: Rough raking and cutting. | D44: m | E44: 30
A45: 3.1.18 | C45: 75mm brickforce. | D45: m | E45: 130
A46: 3.1.19 | C46: 150mm brickforce. | D46: m | E46: 1320
C48: Waterproofing
A49: 3.1.20 | C49: 375 micron brickgrip DPC under walls and cills. | D49: m² | E49: 30
A50: 3.1.21 | C50: 250 micron gunplas USB green damp-proof
C51: membrane to floors. | D51: m² | E51: 36
A53: Section 3.1 : Conservancy Tank carried forward
A55: PD 10
A56: =A1 -> OKHAHLAMBA LOCAL MUNICIPALITY
A57: =A2 -> CONSTRUCTION OF NKWAZINI CRECHE IN WARD 3
A58: =A3 -> CONTRACT NUMBER: 8/1/1/4/3 TEC 02/2026
A59: Item | B59: Pay Ref | C59: Description | D59: Unit | E59: Qnty | F59: Rate | G59: Amount
C60: brought forward | G60: =G53 -> 0
C62: Formwork
A63: 3.1.22 | B63: 8.2.2 | C63: Smooth formwork to edge of concrete | D63: m | E63: 10
C64: N/E 300mm.
C66: Reinforcement
A67: 3.1.23 | B67: 8.3.2 | C67: (a) Mesh reinforcement ref: 193 in surface bed/apron | D67: m² | E67: 64
A70: 3.1.29 | C70: Two coats bag and brickseal to outer face of
C71: inner skin of brick wall. | D71: m² | E71: 150
A72: 3.1.30
A74: 3.1.31 | C74: Supply and cast in a lockble manhole cover. Rate to include handling on site | D74: Item | E74: 1
C76: Testing
A77: 3.1.32 | C77: Allow for testing of Concrete | D77: Item | E77: 1
C79: Plumbing works including all pipe work, fittings for the consavancy Tank | D79: sum | E79: 1
C83: Section 3.1 : Conservancy Tank carried to Summary
A85: PD 11

Sheet PROVISIONAL SUMS
A1: ='P&G '!A1 -> OKHAHLAMBA LOCAL MUNICIPALITY
A2: ='P&G '!A2 -> CONSTRUCTION OF NKWAZINI CRECHE IN WARD 3
A3: ='P&G '!A3 -> CONTRACT NUMBER: 8/1/1/4/3 TEC 02/2026
A4: Item | B4: Pay Ref | C4: Description | D4: Unit | E4: Qty | F4: Rate | G4: Amount
C5: SECTION 5
C6: PROVISIONAL SUMS
A8: 4.1.1 | C8: Contractor to allow for fee for electricity
C9: connection to the site by Eskom. | D9: Sum | E9: 1 | F9: 80,000.00 | G9: =E9*F9 -> 80000.00
A11: 5.1.2 | C11: Contractor's attendance, handling costs
C12: and charges on item 5.1.1 | D12: % | E12: =G9 -> 80,000.00 | F12: %
A14: 5.1.3 | B14: 8.4.5 | C14: Contractor to allow for fee of Student Traning with S3 Qualification | D14: mths | E14: 5.00 | F14: 5,000.00 | G14: =E14*F14 -> 25000.00
C15: to be selected by Egineer. Minimum 1250 per week.
A17: 5.1.4 | C17: Contractor's attendance, handling costs
C18: and charges on item 5.1.3 | D18: % | E18: =G14 -> 25,000.00 | F18: %
A21: 5.2 | B21: 8.8 | C21: Temporary Works
A22: 5.2.1 | B22: 8.8.5 | C22: Search For: Records, reference and protect
C23: survey beacons, bench marks, plot
C24: boundary pegs and other reference pegs
C25: and expose on completion | D25: Sum | E25: 1
A27: 5.2.2 | B27: 8.5 | C27: (a) Allow sum for acceptance testing
C28: ordered by the Engineer. | D28: Sum | E28: 1 | F28: 50,000.00 | G28: =E28*F28 -> 50000.00
C30: (b) Contractors attendance,handling
C31: costs and charges on item 5.2.2 | D31: % | E31: 50,000.00 | F31: %
A33: 5.2.3 | B33: 8.5 | C33: a) Allow for Appointment of a Health and Safety Officer by the Engineer | D33: Sum | E33: 1 | F33: 100,000.00 | G33: =E33*F33 -> 100000.00
A36: 5.2.4 | C36: a) Allow for Junngle Gym equipment as Specified by the Client / Engineer | D36: Sum | E36: 1 | F36: 100,000.00 | G36: =E36*F36 -> 100000.00
C38: b) Contractor's attendance and handling costs and charges on 5.2.3 - 4 | D38: % | E38: =G33+G36 -> 200,000.00 | F38: %
A40: 4.2.5 | C40: a) Allow for Water Application | D40: Sum | E40: 1 | F40: 35,000.00 | G40: =E40*F40 -> 35000.00
C42: b) Contractor's attendance and handling costs and charges on 5.2.5 | D42: % | E42: =G40 -> 35,000.00 | F42: %
A44: 5.2.6 | C44: a) Allow installation of 200m x 1.8m high Clear view anti climb fence and Entrance gates to be installed by a specialist appointed by the Engineer | D44: Sum | E44: 1 | F44: 350,000.00 | G44: =E44*F44 -> 350000.00
C46: b) Contractor's attendance and handling costs and charges on 5.2.6 | D46: % | E46: =G44 -> 350,000.00 | F46: %
C48: Section 1: P & G Carried Forward to Summary
A50: PD 12
